[Event "71st RUS-ch Higher League 2018"]
[Site "Yaroslavl"]
[Date "2018.07.02"]
[Round "6"]
[White "Kobalia, Mikhail"]
[Black "Paravyan, David"]
[Result "1-0"]
[ECO "B90"]
[WhiteElo "2608"]
[BlackElo "2634"]
[Annotator "ChessBase"]
[PlyCount "53"]
[EventDate "2018.06.26"]
[EventType "swiss"]
[EventCountry "RUS"]
[SourceTitle "playchess.com"]
[Source "ChessBase"]
[SourceQuality "1"]
[TimeControl "40/5400+30:1800+30"]

1. e4 {[%emt 0:00:00]} c5 {[%emt 0:04:33]} 2. Nf3 {[%emt 0:00:00]} d6 {[%emt 0:00:06]} 3. d4 {[%emt 0:00:00]} cxd4 {[%emt 0:00:05]} 4. Nxd4 {[%emt 0:00:00]} Nf6 {[%emt 0:00:05]} 5. Nc3 {[%emt 0:00:00]} a6 {[%emt 0:00:02]} 6. f3 {[%emt 0:00:52]} e6 {[%emt 0:00:05]} 7. g4 {[%emt 0:00:09]} b5 {[%emt 0:06:27]} 8. a3 {[%emt 0:00:23]} h6 {[%emt 0:17:31]} 9. h4 {[%emt 0:02:17]} Be7 {[%emt 0:01:49]} 10. Be3 {[%emt 0:04:34]} Nfd7 {[%emt 0:03:59]} 11. Bf2 {[%emt 0:01:46]} Qc7 {[%emt 0:04:15]} 12. Qd2 {[%emt 0:05:11]} Ne5 {[%emt 0:01:30]} 13. Be2 {[%emt 0:09:13]} Nbd7 {[%emt 0:03:44]} 14. O-O-O {[%emt 0:17:36]} Rb8 {[%emt 0:00:57]} 15. Rh3 {[%emt 0:02:43]} Nc4 {[%emt 0:05:36]} 16. Qe1 {[%emt 0:03:08]} O-O {[%emt 0:09:21]} 17. f4 {[%emt 0:05:22]} g6 {[%emt 0:16:33]} 18. g5 {[%emt 0:10:39]} h5 {[%emt 0:00:42]} 19. Bxh5 {[%emt 0:03:09]} gxh5 {[%emt 0:03:02]} 20. Qe2 {[%emt 0:00:52]} b4 {[%emt 0:05:47]} 21. Nf5 {[%emt 0:01:14]} exf5 {[%emt 0:04:40]} 22. Nd5 {[%emt 0:00:29]} Qd8 {[%emt 0:00:05]} 23. Qxh5 {[%emt 0:04:08]} Nde5 {[%emt 0:04:07]} 24. fxe5 {[%emt 0:00:28]} Nxe5 {[%emt 0:00:03]} 25. Bd4 {[%emt 0:00:58]} bxa3 {[%emt 0:06:53]} 26. Bxe5 {[%emt 0:01:56]} dxe5 {[%emt 0:00:16]} 27. g6 {[%emt 0:00:16]} 1-0

[Event "71st RUS-ch Higher League 2018"]
[Site "Yaroslavl"]
[Date "2018.07.02"]
[Round "6"]
[White "Kokarev, Dmitry"]
[Black "Dreev, Aleksey"]
[Result "1/2-1/2"]
[ECO "C60"]
[WhiteElo "2603"]
[BlackElo "2657"]
[Annotator "ChessBase"]
[PlyCount "94"]
[EventDate "2018.06.26"]
[EventType "swiss"]
[EventCountry "RUS"]
[SourceTitle "playchess.com"]
[Source "ChessBase"]
[SourceQuality "1"]
[TimeControl "40/5400+30:1800+30"]

1. e4 {[%emt 0:00:00]} e5 {[%emt 0:01:00]} 2. Nf3 {[%emt 0:00:00]} Nc6 {[%emt 0:00:05]} 3. Bb5 {[%emt 0:00:00]} g6 {[%emt 0:00:07]} 4. d4 {[%emt 0:00:34]} exd4 {[%emt 0:00:25]} 5. Bg5 {[%emt 0:00:09]} Be7 {[%emt 0:00:11]} 6. Bxe7 {[%emt 0:00:11]} Qxe7 {[%emt 0:00:14]} 7. Bxc6 {[%emt 0:00:24]} dxc6 {[%emt 0:00:17]} 8. Qxd4 {[%emt 0:00:13]} Nf6 {[%emt 0:00:17]} 9. O-O {[%emt 0:05:19]} c5 {[%emt 0:07:07]} 10. Qe3 {[%emt 0:04:02]} Bg4 {[%emt 0:05:09]} 11. Nc3 {[%emt 0:06:15]} O-O-O {[%emt 0:03:36]} 12. Nd2 {[%emt 0:06:06]} Be6 {[%emt 0:05:05]} 13. f3 {[%emt 0:03:53]} Nd7 {[%emt 0:12:50]} 14. f4 {[%emt 0:14:43]} f6 {[%emt 0:04:05]} 15. Nf3 {[%emt 0:09:55]} Rhe8 {[%emt 0:05:27]} 16. Rad1 {[%emt 0:02:16]} Nb6 {[%emt 0:02:33]} 17. h3 {[%emt 0:04:45]} Bd7 {[%emt 0:08:20]} 18. b3 {[%emt 0:05:06]} Bc6 {[%emt 0:02:03]} 19. Rxd8+ {[%emt 0:00:26]} Rxd8 {[%emt 0:00:13]} 20. Re1 {[%emt 0:00:37]} Nd7 {[%emt 0:04:06]} 21. Nd5 {[%emt 0:07:57]} Bxd5 {[%emt 0:02:53]} 22. exd5 {[%emt 0:00:07]} Qxe3+ {[%emt 0:07:27]} 23. Rxe3 {[%emt 0:01:41]} b5 {[%emt 0:00:09]} 24. Re7 {[%emt 0:03:56]} Nb6 {[%emt 0:00:19]} 25. Rxh7 {[%emt 0:00:07]} Nxd5 {[%emt 0:00:07]} 26. f5 {[%emt 0:03:49]} g5 {[%emt 0:01:47]} 27. Rf7 {[%emt 0:00:55]} Rd6 {[%emt 0:00:36]} 28. Nh2 {[%emt 0:11:39]} Ne3 {[%emt 0:07:32]} 29. Ng4 {[%emt 0:01:32]} Nxg4 {[%emt 0:01:13]} 30. hxg4 {[%emt 0:00:05]} b4 {[%emt 0:00:04]} 31. Kf1 {[%emt 0:01:57]} c4 {[%emt 0:07:16]} 32. bxc4 {[%emt 0:01:02]} Rc6 {[%emt 0:00:04]} 33. Ke2 {[%emt 0:01:33]} Rxc4 {[%emt 0:01:19]} 34. Kd2 {[%emt 0:00:08]} Rc6 {[%emt 0:01:10]} 35. Kc1 {[%emt 0:00:22]} Kd8 {[%emt 0:03:03]} 36. Rh7 {[%emt 0:02:32]} Ke8 {[%emt 0:00:53]} 37. Kb2 {[%emt 0:00:59]} Rc4 {[%emt 0:01:22]} 38. Kb3 {[%emt 0:00:08]} Rc3+ {[%emt 0:04:57]} 39. Kxb4 {[%emt 0:00:56]} Rxc2 {[%emt 0:00:04]} 40. g3 {[%emt 0:00:00]} Rxa2 {[%emt 0:00:00]} 41. Rxc7 {[%emt 0:02:25]} Rb2+ {[%emt 0:03:09]} 42. Kc3 {[%emt 0:00:38]} Rg2 {[%emt 0:00:28]} 43. Kd4 {[%emt 0:04:16]} Rxg3 {[%emt 0:00:14]} 44. Kd5 {[%emt 0:00:47]} Ra3 {[%emt 0:01:01]} 45. Ke6 {[%emt 0:00:39]} Ra6+ {[%emt 0:00:08]} 46. Kd5 {[%emt 0:00:03]} Kd8 {[%emt 0:00:23]} 47. Rf7 {[%emt 0:00:23]} Ke8 {[%emt 0:00:20]} 1/2-1/2

[Event "71st RUS-ch Higher League 2018"]
[Site "Yaroslavl"]
[Date "2018.07.02"]
[Round "6"]
[White "Esipenko, Andrey"]
[Black "Bykov, Oleg"]
[Result "1-0"]
[ECO "A46"]
[WhiteElo "2599"]
[BlackElo "2375"]
[Annotator "ChessBase"]
[PlyCount "165"]
[EventDate "2018.06.26"]
[EventType "swiss"]
[EventCountry "RUS"]
[SourceTitle "playchess.com"]
[Source "ChessBase"]
[SourceQuality "1"]
[TimeControl "40/5400+30:1800+30"]

1. d4 {[%emt 0:00:00]} Nf6 {[%emt 0:00:00]} 2. Nf3 {[%emt 0:00:00]} d5 {[%emt 0:00:16]} 3. c4 {[%emt 0:00:31]} e6 {[%emt 0:00:13]} 4. g3 {[%emt 0:02:45]} Bb4+ {[%emt 0:00:18]} 5. Bd2 {[%emt 0:00:07]} Bd6 {[%emt 0:00:12]} 6. Nc3 {[%emt 0:00:43]} O-O {[%emt 0:01:37]} 7. Bg5 {[%emt 0:06:49]} c6 {[%emt 0:03:22]} 8. Bg2 {[%emt 0:14:12]} dxc4 {[%emt 0:07:23]} 9. Nd2 {[%emt 0:23:15]} h6 {[%emt 0:09:30]} 10. Bxf6 {[%emt 0:00:07]} Qxf6 {[%emt 0:00:06]} 11. Nxc4 {[%emt 0:00:15]} Bc7 {[%emt 0:00:21]} 12. e3 {[%emt 0:03:03]} e5 {[%emt 0:14:14]} 13. d5 {[%emt 0:01:12]} b5 {[%emt 0:29:03]} 14. Nd2 {[%emt 0:13:23]} b4 {[%emt 0:04:06]} 15. Nb5 {[%emt 0:05:19]} Bb6 {[%emt 0:07:26]} 16. dxc6 {[%emt 0:05:05]} Nxc6 {[%emt 0:01:14]} 17. Ne4 {[%emt 0:08:23]} Qe7 {[%emt 0:01:29]} 18. Ned6 {[%emt 0:00:09]} Bd7 {[%emt 0:00:19]} 19. O-O {[%emt 0:07:52]} Rad8 {[%emt 0:05:56]} 20. Nb7 {[%emt 0:02:15]} Rb8 {[%emt 0:00:23]} 21. N5d6 {[%emt 0:00:15]} Nd8 {[%emt 0:01:54]} 22. Nxd8 {[%emt 0:00:26]} Rfxd8 {[%emt 0:00:27]} 23. Nc4 {[%emt 0:00:19]} Bb5 {[%emt 0:03:43]} 24. Qc2 {[%emt 0:00:06]} Bxc4 {[%emt 0:00:17]} 25. Qxc4 {[%emt 0:00:00]} Rd2 {[%emt 0:00:26]} 26. Qb3 {[%emt 0:00:16]} g6 {[%emt 0:01:15]} 27. Rac1 {[%emt 0:01:01]} Kg7 {[%emt 0:03:18]} 28. Rc4 {[%emt 0:00:06]} Bc7 {[%emt 0:00:44]} 29. Rd1 {[%emt 0:02:20]} Rxd1+ {[%emt 0:00:29]} 30. Qxd1 {[%emt 0:00:05]} Rd8 {[%emt 0:00:53]} 31. Qc2 {[%emt 0:00:10]} Bd6 {[%emt 0:00:29]} 32. h4 {[%emt 0:00:55]} h5 {[%emt 0:00:04]} 33. Bf3 {[%emt 0:00:43]} Rd7 {[%emt 0:00:36]} 34. Bc6 {[%emt 0:00:52]} Rd8 {[%emt 0:00:08]} 35. Qe4 {[%emt 0:00:44]} Rc8 {[%emt 0:01:15]} 36. Qd5 {[%emt 0:00:51]} Rd8 {[%emt 0:02:02]} 37. Qa5 {[%emt 0:00:21]} Rc8 {[%emt 0:00:45]} 38. Rc2 {[%emt 0:00:24]} Rd8 {[%emt 0:00:27]} 39. Bd5 {[%emt 0:00:00]} Rb8 {[%emt 0:00:00]} 40. Rc6 {[%emt 0:00:00]} Rd8 {[%emt 0:00:00]} 41. Be4 {[%emt 0:05:24]} Rb8 {[%emt 0:03:19]} 42. Kg2 {[%emt 0:00:58]} Rd8 {[%emt 0:00:53]} 43. Bd5 {[%emt 0:03:25]} Kf8 {[%emt 0:03:00]} 44. a4 {[%emt 0:04:42]} bxa3 {[%emt 0:01:34]} 45. bxa3 {[%emt 0:00:09]} Kg7 {[%emt 0:07:21]} 46. a4 {[%emt 0:00:16]} Bb4 {[%emt 0:01:30]} 47. Qb5 {[%emt 0:00:09]} a5 {[%emt 0:01:39]} 48. Qc4 {[%emt 0:04:43]} Bd6 {[%emt 0:03:29]} 49. Rb6 {[%emt 0:02:42]} Rd7 {[%emt 0:01:19]} 50. Be4 {[%emt 0:06:27]} Bb4 {[%emt 0:01:36]} 51. Qb5 {[%emt 0:01:03]} Rc7 {[%emt 0:01:53]} 52. Rb8 {[%emt 0:00:47]} Bc3 {[%emt 0:02:57]} 53. Qa6 {[%emt 0:02:39]} Kh7 {[%emt 0:00:48]} 54. Ra8 {[%emt 0:01:56]} Bb4 {[%emt 0:01:30]} 55. Qe2 {[%emt 0:03:25]} Kh6 {[%emt 0:01:08]} 56. Qa6 {[%emt 0:01:20]} Kh7 {[%emt 0:00:35]} 57. Qe2 {[%emt 0:01:43]} Kh6 {[%emt 0:00:05]} 58. Bd5 {[%emt 0:00:18]} Qf6 {[%emt 0:01:07]} 59. e4 {[%emt 0:00:24]} Kh7 {[%emt 0:01:15]} 60. Re8 {[%emt 0:00:40]} Bc5 {[%emt 0:01:20]} 61. Ra8 {[%emt 0:00:30]} Bb4 {[%emt 0:00:01]} 62. Ra6 {[%emt 0:00:07]} Qe7 {[%emt 0:00:25]} 63. Rb6 {[%emt 0:00:08]} Bc3 {[%emt 0:00:58]} 64. Ra6 {[%emt 0:01:49]} Bb4 {[%emt 0:00:05]} 65. Ra8 {[%emt 0:00:38]} Qf6 {[%emt 0:00:12]} 66. Ra6 {[%emt 0:00:35]} Qe7 {[%emt 0:00:06]} 67. Rb6 {[%emt 0:00:37]} Bc3 {[%emt 0:00:06]} 68. Rb3 {[%emt 0:00:17]} Kg7 {[%emt 0:00:54]} 69. Qa6 {[%emt 0:00:19]} Qf6 {[%emt 0:01:50]} 70. Qa8 {[%emt 0:00:16]} Kh7 {[%emt 0:00:52]} 71. Qe8 {[%emt 0:00:07]} Kg7 {[%emt 0:01:43]} 72. Rb8 {[%emt 0:00:12]} Kh6 {[%emt 0:00:40]} 73. Rb6 {[%emt 0:01:05]} Qg7 {[%emt 0:00:52]} 74. Qd8 {[%emt 0:00:13]} Ra7 {[%emt 0:00:45]} 75. Qb8 {[%emt 0:00:18]} Re7 {[%emt 0:00:25]} 76. Ra6 {[%emt 0:00:46]} Kh7 {[%emt 0:00:49]} 77. Qd8 {[%emt 0:00:14]} Bb4 {[%emt 0:01:16]} 78. Rxa5 {[%emt 0:00:15]} Qf6 {[%emt 0:00:30]} 79. Ra8 {[%emt 0:01:11]} Bc5 {[%emt 0:00:50]} 80. f3 {[%emt 0:00:14]} Bb6 {[%emt 0:00:50]} 81. Qg8+ {[%emt 0:00:24]} Kh6 {[%emt 0:00:01]} 82. Ra6 {[%emt 0:00:49]} Ra7 {[%emt 0:01:14]} 83. Rxb6 {[%emt 0:00:09]} 1-0

[Event "71st RUS-ch Higher League 2018"]
[Site "Yaroslavl"]
[Date "2018.07.02"]
[Round "6"]
[White "Timofeev, Artyom"]
[Black "Rakhmanov, Aleksandr"]
[Result "1/2-1/2"]
[ECO "E21"]
[WhiteElo "2583"]
[BlackElo "2627"]
[Annotator "ChessBase"]
[PlyCount "38"]
[EventDate "2018.06.26"]
[EventType "swiss"]
[EventCountry "RUS"]
[SourceTitle "playchess.com"]
[Source "ChessBase"]
[SourceQuality "1"]
[TimeControl "40/5400+30:1800+30"]

1. d4 {[%emt 0:00:00]} Nf6 {[%emt 0:00:33]} 2. Nf3 {[%emt 0:00:00]} e6 {[%emt 0:06:52]} 3. c4 {[%emt 0:02:28]} b6 {[%emt 0:02:38]} 4. Nc3 {[%emt 0:03:41]} Bb7 {[%emt 0:01:54]} 5. e3 {[%emt 0:01:50]} Ne4 {[%emt 0:08:25]} 6. Bd3 {[%emt 0:07:26]} Nxc3 {[%emt 0:01:08]} 7. bxc3 {[%emt 0:00:06]} d6 {[%emt 0:01:25]} 8. Qc2 {[%emt 0:08:23]} h6 {[%emt 0:04:00]} 9. Be4 {[%emt 0:12:57]} Qc8 {[%emt 0:08:08]} 10. Bxb7 {[%emt 0:07:00]} Qxb7 {[%emt 0:00:15]} 11. e4 {[%emt 0:00:08]} Nd7 {[%emt 0:00:49]} 12. Be3 {[%emt 0:00:53]} Be7 {[%emt 0:07:00]} 13. O-O {[%emt 0:02:02]} O-O {[%emt 0:00:34]} 14. a4 {[%emt 0:02:02]} e5 {[%emt 0:10:03]} 15. h3 {[%emt 0:02:33]} Nf6 {[%emt 0:01:54]} 16. Nd2 {[%emt 0:00:32]} Nh7 {[%emt 0:01:26]} 17. Nf3 {[%emt 0:02:52]} Nf6 {[%emt 0:00:16]} 18. Nd2 {[%emt 0:02:26]} Nh7 {[%emt 0:00:22]} 19. Nf3 {[%emt 0:00:43]} Nf6 1/2-1/2

[Event "71st RUS-ch Higher League 2018"]
[Site "Yaroslavl"]
[Date "2018.07.02"]
[Round "6"]
[White "Sakaev, Konstantin"]
[Black "Sychev, Klementy"]
[Result "1/2-1/2"]
[ECO "A05"]
[WhiteElo "2580"]
[BlackElo "2527"]
[Annotator "RC"]
[PlyCount "81"]
[EventDate "2018.06.26"]
[EventType "swiss"]
[EventCountry "RUS"]
[SourceTitle "playchess.com"]
[Source "ChessBase"]
[SourceQuality "1"]
[TimeControl "40/5400+30:1800+30"]

1. Nf3 {[%emt 0:00:00]} Nf6 {[%emt 0:00:00]} 2. c4 {[%emt 0:00:00]} g6 {[%emt 0:00:44]} 3. Nc3 {[%emt 0:00:00]} d5 {[%emt 0:00:14]} 4. cxd5 {[%emt 0:00:06]} Nxd5 {[%emt 0:00:04]} 5. h4 {[%emt 0:00:33]} Bg7 {[%emt 0:00:57]} 6. e4 {[%emt 0:00:54]} Nxc3 {[%emt 0:01:40]} 7. dxc3 {[%emt 0:00:05]} Qxd1+ {[%emt 0:00:46]} 8. Kxd1 {[%emt 0:00:14]} Nd7 {[%emt 0:04:04]} 9. Nd4 {[%emt 0:00:44]} c6 {[%emt 0:22:38]} 10. h5 {[%emt 0:18:40]} Nb6 {[%emt 0:26:09]} 11. a4 {[%emt 0:12:43]} e5 {[%emt 0:02:32]} 12. Nb3 {[%emt 0:01:55]} f5 {[%emt 0:09:52]} 13. a5 {[%emt 0:02:10]} Nd7 {[%emt 0:00:26]} 14. h6 {[%emt 0:19:31]} Bf8 {[%emt 0:02:01]} 15. exf5 {[%emt 0:01:18]} gxf5 {[%emt 0:01:59]} 16. Bc4 {[%emt 0:01:13]} Bd6 {[%emt 0:04:15]} 17. Bg5 {[%emt 0:02:23]} Be7 {[%emt 0:05:45]} 18. Bxe7 {[%emt 0:11:58]} Kxe7 {[%emt 0:00:03]} 19. Kc2 {[%emt 0:00:52]} e4 {[%emt 0:04:12]} 20. f4 {[%emt 0:07:30]} Nf6 {[%emt 0:01:13]} 21. Rh3 {[%emt 0:03:24]} Bd7 {[%emt 0:05:55]} 22. Nc5 {[%emt 0:02:16]} b5 {[%emt 0:01:24]} 23. axb6 {[%emt 0:09:02]} axb6 {[%emt 0:00:01]} 24. Rxa8 {[%emt 0:00:06]} Rxa8 {[%emt 0:00:03]} 25. Nxd7 {[%emt 0:00:06]} Kxd7 {[%emt 0:00:08]} 26. Rg3 {[%emt 0:00:52]} Ng4 {[%emt 0:02:47]} 27. Be2 {[%emt 0:00:05]} Rg8 {[%emt 0:00:38]} 28. Bxg4 {[%emt 0:01:28]} fxg4 {[%emt 0:02:00]} 29. Re3 {[%emt 0:00:28]} Rg6 {[%emt 0:00:53]} 30. Rxe4 {[%emt 0:00:16]} Rxh6 {[%emt 0:00:05]} 31. f5 {[%emt 0:00:33]} Rf6 {[%emt 0:00:17]} 32. Rxg4 {[%emt 0:00:09]} Rxf5 {[%emt 0:00:04]} 33. Rg7+ {[%emt 0:00:07]} Kd6 {[%emt 0:00:09]} 34. Rxh7 {[%emt 0:00:25]} Rf2+ {[%emt 0:00:06]} 35. Kb3 {[%emt 0:00:04]} Rxg2 {[%emt 0:00:05]} 36. Rh6+ {[%emt 0:00:03]} Kc7 {[%emt 0:00:09]} 37. Rh7+ {[%emt 0:00:05]} Kd6 {[%emt 0:00:03]} 38. Rh6+ {[%emt 0:00:05]} Kc7 {[%emt 0:00:06]} 39. Rh7+ {[%emt 0:00:04]} Kd6 {[%emt 0:00:04]} 40. Rh6+ {[%emt 0:00:00]} Kc7 {[%emt 0:00:00]} 41. Rh7+ {[%emt 0:00:08]} 1/2-1/2

[Event "71st RUS-ch Higher League 2018"]
[Site "Yaroslavl"]
[Date "2018.07.02"]
[Round "6"]
[White "Lomasov, Semen"]
[Black "Sviridov, Valery"]
[Result "0-1"]
[ECO "B06"]
[WhiteElo "2549"]
[BlackElo "2513"]
[Annotator "RC"]
[PlyCount "72"]
[EventDate "2018.06.26"]
[EventType "swiss"]
[EventCountry "RUS"]
[SourceTitle "playchess.com"]
[Source "ChessBase"]
[SourceQuality "1"]
[TimeControl "40/5400+30:1800+30"]

1. e4 {[%emt 0:00:00]} g6 {[%emt 0:00:00]} 2. d4 {[%emt 0:00:00]} Bg7 {[%emt 0:00:00]} 3. Nc3 {[%emt 0:00:00]} d6 {[%emt 0:00:07]} 4. Be3 {[%emt 0:00:00]} a6 {[%emt 0:00:47]} 5. Nf3 {[%emt 0:00:16]} b5 {[%emt 0:00:55]} 6. Bd3 {[%emt 0:00:29]} Nd7 {[%emt 0:00:44]} 7. e5 {[%emt 0:04:18]} Bb7 {[%emt 0:04:51]} 8. e6 {[%emt 0:01:37]} fxe6 {[%emt 0:00:10]} 9. Ng5 {[%emt 0:00:05]} Nf8 {[%emt 0:00:18]} 10. O-O {[%emt 0:00:08]} Nh6 {[%emt 0:02:44]} 11. a4 {[%emt 0:20:12]} b4 {[%emt 0:01:33]} 12. Nce4 {[%emt 0:00:17]} Nf5 {[%emt 0:05:33]} 13. c3 {[%emt 0:00:37]} bxc3 {[%emt 0:03:36]} 14. bxc3 {[%emt 0:01:04]} h6 {[%emt 0:00:53]} 15. Nf3 {[%emt 0:03:40]} Nd7 {[%emt 0:07:13]} 16. g4 {[%emt 0:24:28]} Nxe3 {[%emt 0:01:31]} 17. fxe3 {[%emt 0:00:04]} O-O {[%emt 0:00:33]} 18. g5 {[%emt 0:06:25]} Rb8 {[%emt 0:07:01]} 19. Ra2 {[%emt 0:03:26]} Qe8 {[%emt 0:08:53]} 20. Rg2 {[%emt 0:02:05]} h5 {[%emt 0:02:15]} 21. Qc2 {[%emt 0:00:31]} Nb6 {[%emt 0:09:54]} 22. Ned2 {[%emt 0:05:48]} Qxa4 {[%emt 0:05:16]} 23. Qc1 {[%emt 0:00:01]} Nd5 {[%emt 0:02:37]} 24. Re2 {[%emt 0:08:00]} Qc6 {[%emt 0:03:06]} 25. Bxg6 {[%emt 0:00:50]} Nxc3 {[%emt 0:03:00]} 26. Ref2 {[%emt 0:01:53]} e5 {[%emt 0:03:21]} 27. dxe5 {[%emt 0:03:54]} Bxe5 {[%emt 0:01:22]} 28. Qc2 {[%emt 0:01:01]} Bg7 {[%emt 0:02:07]} 29. Bh7+ {[%emt 0:02:48]} Kh8 {[%emt 0:00:08]} 30. Qg6 {[%emt 0:03:32]} Qe8 {[%emt 0:01:43]} 31. Qd3 {[%emt 0:01:25]} Qd7 {[%emt 0:03:04]} 32. h3 {[%emt 0:01:00]} Qxh3 {[%emt 0:06:04]} 33. Rh2 {[%emt 0:00:09]} Qg4+ {[%emt 0:00:08]} 34. Rg2 {[%emt 0:00:06]} Qe6 {[%emt 0:00:08]} 35. Rff2 {[%emt 0:06:25]} Nd1 {[%emt 0:08:10]} 36. Nh4 {[%emt 0:00:55]} Rxf2 {[%emt 0:00:08]} 0-1

[Event "71st RUS-ch Higher League 2018"]
[Site "Yaroslavl"]
[Date "2018.07.02"]
[Round "6"]
[White "Ovetchkin, Roman"]
[Black "Lysyj, Igor"]
[Result "0-1"]
[ECO "A40"]
[WhiteElo "2546"]
[BlackElo "2630"]
[Annotator "ChessBase"]
[PlyCount "74"]
[EventDate "2018.06.26"]
[EventType "swiss"]
[EventCountry "RUS"]
[SourceTitle "playchess.com"]
[Source "ChessBase"]
[SourceQuality "1"]
[TimeControl "40/5400+30:1800+30"]

1. d4 {[%emt 0:00:00]} e6 {[%emt 0:00:16]} 2. c4 {[%emt 0:02:25]} b6 {[%emt 0:01:12]} 3. a3 {[%emt 0:02:06]} Bb7 {[%emt 0:00:20]} 4. Nc3 {[%emt 0:00:17]} Nf6 {[%emt 0:00:13]} 5. d5 {[%emt 0:11:24]} Bd6 {[%emt 0:00:10]} 6. Nf3 {[%emt 0:00:35]} O-O {[%emt 0:00:51]} 7. g3 {[%emt 0:02:50]} c6 {[%emt 0:12:28]} 8. Bg5 {[%emt 0:00:47]} cxd5 {[%emt 0:03:11]} 9. cxd5 {[%emt 0:01:24]} exd5 {[%emt 0:01:43]} 10. Bg2 {[%emt 0:03:55]} Na6 {[%emt 0:15:00]} 11. O-O {[%emt 0:01:59]} Nc7 {[%emt 0:01:55]} 12. Nd4 {[%emt 0:28:42]} h6 {[%emt 0:15:26]} 13. Ndb5 {[%emt 0:02:36]} Nxb5 {[%emt 0:01:32]} 14. Nxb5 {[%emt 0:00:07]} Be5 {[%emt 0:03:15]} 15. Bf4 {[%emt 0:04:11]} d6 {[%emt 0:02:59]} 16. Qb3 {[%emt 0:12:24]} Re8 {[%emt 0:06:51]} 17. Be3 {[%emt 0:04:32]} Ng4 {[%emt 0:10:34]} 18. Bd2 {[%emt 0:00:54]} a6 {[%emt 0:03:28]} 19. Nc3 {[%emt 0:01:58]} Nf6 {[%emt 0:00:19]} 20. Rad1 {[%emt 0:01:23]} Rc8 {[%emt 0:02:34]} 21. Be3 {[%emt 0:06:00]} Bxc3 {[%emt 0:00:04]} 22. Bxb6 {[%emt 0:00:50]} Qd7 {[%emt 0:00:25]} 23. bxc3 {[%emt 0:00:04]} Bc6 {[%emt 0:04:05]} 24. Qa2 {[%emt 0:01:33]} Bb5 {[%emt 0:00:33]} 25. Rd2 {[%emt 0:00:18]} Ne4 {[%emt 0:02:56]} 26. Bxe4 {[%emt 0:01:41]} dxe4 {[%emt 0:00:04]} 27. Rfd1 {[%emt 0:00:36]} Bc4 {[%emt 0:01:39]} 28. Qc2 {[%emt 0:01:03]} d5 {[%emt 0:00:32]} 29. Bd4 {[%emt 0:00:34]} Qh3 {[%emt 0:01:19]} 30. Rb1 {[%emt 0:00:44]} Re6 {[%emt 0:00:35]} 31. Qd1 {[%emt 0:00:18]} h5 {[%emt 0:00:31]} 32. Rdb2 {[%emt 0:00:49]} h4 {[%emt 0:01:04]} 33. Rb6 {[%emt 0:02:25]} e3 {[%emt 0:02:51]} 34. Rxe6 {[%emt 0:02:33]} exf2+ {[%emt 0:00:23]} 35. Bxf2 {[%emt 0:00:06]} Qxe6 {[%emt 0:01:03]} 36. gxh4 {[%emt 0:00:11]} Bxe2 {[%emt 0:01:05]} 37. Qd2 {[%emt 0:00:07]} Qg6+ {[%emt 0:00:07]} 0-1

[Event "71st RUS-ch Higher League 2018"]
[Site "Yaroslavl"]
[Date "2018.07.02"]
[Round "6"]
[White "Triapishko, Alexandr"]
[Black "Turov, Maxim"]
[Result "0-1"]
[ECO "B18"]
[WhiteElo "2513"]
[BlackElo "2600"]
[Annotator "RC"]
[PlyCount "90"]
[EventDate "2018.06.26"]
[EventType "swiss"]
[EventCountry "RUS"]
[SourceTitle "playchess.com"]
[Source "ChessBase"]
[SourceQuality "1"]
[TimeControl "40/5400+30:1800+30"]

1. e4 {[%emt 0:00:53]} c6 {[%emt 0:00:00]} 2. d4 {[%emt 0:00:11]} d5 {[%emt 0:00:00]} 3. Nc3 {[%emt 0:00:18]} dxe4 {[%emt 0:00:00]} 4. Nxe4 {[%emt 0:00:08]} Bf5 {[%emt 0:00:19]} 5. Nc5 {[%emt 0:00:12]} Nd7 {[%emt 0:00:57]} 6. Bd3 {[%emt 0:00:38]} Bxd3 {[%emt 0:01:17]} 7. Nxd3 {[%emt 0:00:13]} Ngf6 {[%emt 0:00:21]} 8. Nf3 {[%emt 0:00:34]} e6 {[%emt 0:00:10]} 9. O-O {[%emt 0:01:24]} Be7 {[%emt 0:00:21]} 10. c4 {[%emt 0:04:41]} O-O {[%emt 0:00:21]} 11. Qe2 {[%emt 0:03:22]} Re8 {[%emt 0:18:47]} 12. b3 {[%emt 0:10:50]} a5 {[%emt 0:01:49]} 13. a4 {[%emt 0:17:58]} Qb6 {[%emt 0:06:09]} 14. Qc2 {[%emt 0:11:15]} c5 {[%emt 0:04:25]} 15. Bb2 {[%emt 0:00:41]} cxd4 {[%emt 0:00:44]} 16. Nxd4 {[%emt 0:07:21]} Nc5 {[%emt 0:05:28]} 17. Rad1 {[%emt 0:05:27]} Rad8 {[%emt 0:01:21]} 18. Nb5 {[%emt 0:03:02]} Nxd3 {[%emt 0:06:30]} 19. Rxd3 {[%emt 0:00:22]} Rxd3 {[%emt 0:00:19]} 20. Qxd3 {[%emt 0:00:07]} Rd8 {[%emt 0:00:15]} 21. Qg3 {[%emt 0:09:22]} Rd7 {[%emt 0:09:59]} 22. Be5 {[%emt 0:03:18]} Ne8 {[%emt 0:01:05]} 23. h3 {[%emt 0:04:26]} h6 {[%emt 0:13:03]} 24. Bf4 {[%emt 0:04:30]} Kh7 {[%emt 0:01:59]} 25. Qf3 {[%emt 0:02:13]} Bc5 {[%emt 0:02:41]} 26. Be5 {[%emt 0:02:18]} Qd8 {[%emt 0:00:37]} 27. Nc3 {[%emt 0:02:41]} Nf6 {[%emt 0:01:20]} 28. Ne4 {[%emt 0:01:29]} Nxe4 {[%emt 0:04:25]} 29. Qxe4+ {[%emt 0:00:01]} f5 {[%emt 0:00:09]} 30. Qf3 {[%emt 0:00:42]} b6 {[%emt 0:00:38]} 31. Qh5 {[%emt 0:00:16]} Rd2 {[%emt 0:02:10]} 32. Qf7 {[%emt 0:01:49]} Qd7 {[%emt 0:00:13]} 33. Qxd7 {[%emt 0:00:45]} Rxd7 {[%emt 0:00:07]} 34. Bc3 {[%emt 0:01:49]} Rd3 {[%emt 0:03:50]} 35. Rc1 {[%emt 0:00:01]} f4 {[%emt 0:00:25]} 36. Rc2 {[%emt 0:01:49]} Rd1+ {[%emt 0:09:13]} 37. Kh2 {[%emt 0:00:03]} g5 {[%emt 0:00:06]} 38. g4 {[%emt 0:00:57]} Rd3 {[%emt 0:00:08]} 39. Be5 {[%emt 0:00:28]} h5 {[%emt 0:03:22]} 40. gxh5 {[%emt 0:00:00]} Kh6 {[%emt 0:00:00]} 41. h4 {[%emt 0:12:59]} Kxh5 {[%emt 0:01:58]} 42. hxg5 {[%emt 0:01:07]} Kxg5 {[%emt 0:00:08]} 43. Kg2 {[%emt 0:04:23]} Kf5 {[%emt 0:01:00]} 44. Bh8 {[%emt 0:04:20]} e5 {[%emt 0:00:55]} 45. f3 {[%emt 0:00:24]} Rd8 {[%emt 0:00:16]} 0-1

[Event "71st RUS-ch Higher League 2018"]
[Site "Yaroslavl"]
[Date "2018.07.02"]
[Round "6"]
[White "Goryachkina, Aleksandra"]
[Black "Sjugirov, Sanan"]
[Result "1/2-1/2"]
[ECO "D85"]
[WhiteElo "2505"]
[BlackElo "2663"]
[Annotator "ChessBase"]
[PlyCount "29"]
[EventDate "2018.06.26"]
[EventType "swiss"]
[EventCountry "RUS"]
[SourceTitle "playchess.com"]
[Source "ChessBase"]
[SourceQuality "1"]
[TimeControl "40/5400+30:1800+30"]

1. d4 {[%emt 0:00:00]} Nf6 {[%emt 0:00:00]} 2. c4 {[%emt 0:00:00]} g6 {[%emt 0:00:07]} 3. Nc3 {[%emt 0:00:00]} d5 {[%emt 0:00:11]} 4. cxd5 {[%emt 0:00:08]} Nxd5 {[%emt 0:00:06]} 5. Bd2 {[%emt 0:00:16]} Bg7 {[%emt 0:13:35]} 6. e4 {[%emt 0:00:31]} Nxc3 {[%emt 0:00:12]} 7. Bxc3 {[%emt 0:00:18]} O-O {[%emt 0:00:39]} 8. Qd2 {[%emt 0:02:27]} c5 {[%emt 0:00:49]} 9. d5 {[%emt 0:00:38]} Bxc3 {[%emt 0:00:23]} 10. bxc3 {[%emt 0:00:06]} Qd6 {[%emt 0:00:10]} 11. Nf3 {[%emt 0:03:38]} Bg4 {[%emt 0:09:41]} 12. Ng1 {[%emt 0:02:29]} Bc8 {[%emt 0:11:28]} 13. Nf3 {[%emt 0:00:23]} Bg4 {[%emt 0:02:12]} 14. Ng1 {[%emt 0:00:58]} Bc8 {[%emt 0:01:01]} 15. Nf3 1/2-1/2